Workbook

Sheet Rēķins
B1: Uzņēmuma nosaukums
B2: Adrese | D2: T: Tālruņa numurs | F2: E-pasts
B3: Pilsēta, pasta indekss | D3: F: Faksa numurs | F3: Tīmekļa vietne
B4: Rēķina saņēmējs: | C4: =IFERROR(VLOOKUP(VLOOKUP(rngRēķins,RēķiniGalvenais[],2,FALSE),KlientuSaraksts[],3,TRUE),"") -> Contoso, Ltd | D4: ="Tālrunis: "&IFERROR(VLOOKUP(VLOOKUP(rngRēķins,RēķiniGalvenais[],2,FALSE),KlientuSaraksts[],9,FALSE),"") -> Tālrunis: 25550189 | F4: Rēķina nr.: | G4: 3-456-2
B5: Adrese: | C5: =IFERROR(IF((VLOOKUP(VLOOKUP(rngRēķins,RēķiniGalvenais[],2,FALSE),KlientuSaraksts[],5,FALSE))="","",(VLOOKUP(VLOOKUP(rngRēķins,RēķiniGalvenais[],2,FALSE),KlientuSaraksts[],5,FALSE))),"") -> Riekstu aleja 567 | D5: ="Fakss: "&IFERROR(VLOOKUP(VLOOKUP(rngRēķins,RēķiniGalvenais[],2,FALSE),KlientuSaraksts[],11,FALSE),"") -> Fakss: 25550123 | F5: Rēķina datums: | G5: =IFERROR(IF(VLOOKUP(rngRēķins,RēķiniGalvenais[],3,FALSE)="","",VLOOKUP(rngRēķins,RēķiniGalvenais[],3,FALSE)),"") -> 4368800.00%
C6: =IFERROR(VLOOKUP(VLOOKUP(rngRēķins,RēķiniGalvenais[],2,FALSE),KlientuSaraksts[],6,FALSE)&", "& VLOOKUP(VLOOKUP(G4,RēķiniGalvenais[],2,FALSE),KlientuSaraksts[],7,FALSE)&" "&VLOOKUP(VLOOKUP(G4,RēķiniGalvenais[],2,FALSE),KlientuSaraksts[],8,FALSE),"") -> Ainaži, Valmieras 098765 | D6: ="E-pasts: "&IFERROR(VLOOKUP(VLOOKUP(rngRēķins,RēķiniGalvenais[],2,FALSE),KlientuSaraksts[],10,FALSE),"") -> E-pasts: persona@example.com
B7: ="Rēķins par: "&IFERROR(VLOOKUP(rngRēķins,RēķiniGalvenais[],4),"") -> Rēķins par: 2. projekts
B8: Priekšmeta nr. | C8: Apraksts | D8: Daudz. | E8: Vienības cena | F8: Atlaide | G8: Cena
B9: =IFERROR(INDEX(Rēķina_informācija[],SMALL(IF(Rēķina_informācija[Rēķina nr.]=rngRēķins,ROW(Rēķina_informācija[])-ROW(Rēķina_informācija[#Headers])), ROW(1:1)), MATCH($B$8, Rēķina_informācija[#Headers], 0)),"") -> Z4567 | C9: =IFERROR(INDEX(Rēķina_informācija[],SMALL(IF(Rēķina_informācija[Rēķina nr.]=rngRēķins,ROW(Rēķina_informācija[])-ROW(Rēķina_informācija[#Headers])), ROW(1:1)), MATCH($C$8, Rēķina_informācija[#Headers], 0)),"") -> Faktūrrēķins 3-456-2 dati 1 | D9: =IFERROR(INDEX(Rēķina_informācija[],SMALL(IF(Rēķina_informācija[Rēķina nr.]=rngRēķins,ROW(Rēķina_informācija[])-ROW(Rēķina_informācija[#Headers])), ROW(1:1)), MATCH($D$8, Rēķina_informācija[#Headers], 0)),"") -> 39 | E9: =IFERROR(INDEX(Rēķina_informācija[],SMALL(IF(Rēķina_informācija[Rēķina nr.]=rngRēķins,ROW(Rēķina_informācija[])-ROW(Rēķina_informācija[#Headers])), ROW(1:1)), MATCH($E$8, Rēķina_informācija[#Headers], 0)),"") -> 5.00 EUR | F9: =IFERROR(INDEX(Rēķina_informācija[],SMALL(IF(Rēķina_informācija[Rēķina nr.]=rngRēķins,ROW(Rēķina_informācija[])-ROW(Rēķina_informācija[#Headers])), ROW(1:1)), MATCH($F$8, Rēķina_informācija[#Headers], 0)),"") -> 0 | G9: =IFERROR((D9*E9)-F9,"") -> 195.00 EUR
B10: =IFERROR(INDEX(Rēķina_informācija[],SMALL(IF(Rēķina_informācija[Rēķina nr.]=rngRēķins,ROW(Rēķina_informācija[])-ROW(Rēķina_informācija[#Headers])), ROW(2:2)), MATCH($B$8, Rēķina_informācija[#Headers], 0)),"") -> Z4568 | C10: =IFERROR(INDEX(Rēķina_informācija[],SMALL(IF(Rēķina_informācija[Rēķina nr.]=rngRēķins,ROW(Rēķina_informācija[])-ROW(Rēķina_informācija[#Headers])), ROW(2:2)), MATCH($C$8, Rēķina_informācija[#Headers], 0)),"") -> Faktūrrēķins 3-456-2 dati 2 | D10: =IFERROR(INDEX(Rēķina_informācija[],SMALL(IF(Rēķina_informācija[Rēķina nr.]=rngRēķins,ROW(Rēķina_informācija[])-ROW(Rēķina_informācija[#Headers])), ROW(2:2)), MATCH($D$8, Rēķina_informācija[#Headers], 0)),"") -> 40 | E10: =IFERROR(INDEX(Rēķina_informācija[],SMALL(IF(Rēķina_informācija[Rēķina nr.]=rngRēķins,ROW(Rēķina_informācija[])-ROW(Rēķina_informācija[#Headers])), ROW(2:2)), MATCH($E$8, Rēķina_informācija[#Headers], 0)),"") -> 4.00 EUR | F10: =IFERROR(INDEX(Rēķina_informācija[],SMALL(IF(Rēķina_informācija[Rēķina nr.]=rngRēķins,ROW(Rēķina_informācija[])-ROW(Rēķina_informācija[#Headers])), ROW(2:2)), MATCH($F$8, Rēķina_informācija[#Headers], 0)),"") -> 5.00 EUR | G10: 155.00 EUR
B11: =IFERROR(INDEX(Rēķina_informācija[],SMALL(IF(Rēķina_informācija[Rēķina nr.]=rngRēķins,ROW(Rēķina_informācija[])-ROW(Rēķina_informācija[#Headers])), ROW(3:3)), MATCH($B$8, Rēķina_informācija[#Headers], 0)),"") -> Z4569 | C11: =IFERROR(INDEX(Rēķina_informācija[],SMALL(IF(Rēķina_informācija[Rēķina nr.]=rngRēķins,ROW(Rēķina_informācija[])-ROW(Rēķina_informācija[#Headers])), ROW(3:3)), MATCH($C$8, Rēķina_informācija[#Headers], 0)),"") -> Faktūrrēķins 3-456-2 dati 3 | D11: =IFERROR(INDEX(Rēķina_informācija[],SMALL(IF(Rēķina_informācija[Rēķina nr.]=rngRēķins,ROW(Rēķina_informācija[])-ROW(Rēķina_informācija[#Headers])), ROW(3:3)), MATCH($D$8, Rēķina_informācija[#Headers], 0)),"") -> 30 | E11: =IFERROR(INDEX(Rēķina_informācija[],SMALL(IF(Rēķina_informācija[Rēķina nr.]=rngRēķins,ROW(Rēķina_informācija[])-ROW(Rēķina_informācija[#Headers])), ROW(3:3)), MATCH($E$8, Rēķina_informācija[#Headers], 0)),"") -> 6.00 EUR | F11: =IFERROR(INDEX(Rēķina_informācija[],SMALL(IF(Rēķina_informācija[Rēķina nr.]=rngRēķins,ROW(Rēķina_informācija[])-ROW(Rēķina_informācija[#Headers])), ROW(3:3)), MATCH($F$8, Rēķina_informācija[#Headers], 0)),"") -> 7.00 EUR | G11: 173.00 EUR
B12: =IFERROR(INDEX(Rēķina_informācija[],SMALL(IF(Rēķina_informācija[Rēķina nr.]=rngRēķins,ROW(Rēķina_informācija[])-ROW(Rēķina_informācija[#Headers])), ROW(4:4)), MATCH($B$8, Rēķina_informācija[#Headers], 0)),"") -> Z4570 | C12: =IFERROR(INDEX(Rēķina_informācija[],SMALL(IF(Rēķina_informācija[Rēķina nr.]=rngRēķins,ROW(Rēķina_informācija[])-ROW(Rēķina_informācija[#Headers])), ROW(4:4)), MATCH($C$8, Rēķina_informācija[#Headers], 0)),"") -> Faktūrrēķins 3-456-2 dati 4 | D12: =IFERROR(INDEX(Rēķina_informācija[],SMALL(IF(Rēķina_informācija[Rēķina nr.]=rngRēķins,ROW(Rēķina_informācija[])-ROW(Rēķina_informācija[#Headers])), ROW(4:4)), MATCH($D$8, Rēķina_informācija[#Headers], 0)),"") -> 40 | E12: =IFERROR(INDEX(Rēķina_informācija[],SMALL(IF(Rēķina_informācija[Rēķina nr.]=rngRēķins,ROW(Rēķina_informācija[])-ROW(Rēķina_informācija[#Headers])), ROW(4:4)), MATCH($E$8, Rēķina_informācija[#Headers], 0)),"") -> 7.00 EUR | F12: =IFERROR(INDEX(Rēķina_informācija[],SMALL(IF(Rēķina_informācija[Rēķina nr.]=rngRēķins,ROW(Rēķina_informācija[])-ROW(Rēķina_informācija[#Headers])), ROW(4:4)), MATCH($F$8, Rēķina_informācija[#Headers], 0)),"") -> 0 | G12: 280.00 EUR
B13: =IFERROR(INDEX(Rēķina_informācija[],SMALL(IF(Rēķina_informācija[Rēķina nr.]=rngRēķins,ROW(Rēķina_informācija[])-ROW(Rēķina_informācija[#Headers])), ROW(5:5)), MATCH($B$8, Rēķina_informācija[#Headers], 0)),"") -> Z4571 | C13: =IFERROR(INDEX(Rēķina_informācija[],SMALL(IF(Rēķina_informācija[Rēķina nr.]=rngRēķins,ROW(Rēķina_informācija[])-ROW(Rēķina_informācija[#Headers])), ROW(5:5)), MATCH($C$8, Rēķina_informācija[#Headers], 0)),"") -> Faktūrrēķins 3-456-2 dati 5 | D13: =IFERROR(INDEX(Rēķina_informācija[],SMALL(IF(Rēķina_informācija[Rēķina nr.]=rngRēķins,ROW(Rēķina_informācija[])-ROW(Rēķina_informācija[#Headers])), ROW(5:5)), MATCH($D$8, Rēķina_informācija[#Headers], 0)),"") -> 10 | E13: =IFERROR(INDEX(Rēķina_informācija[],SMALL(IF(Rēķina_informācija[Rēķina nr.]=rngRēķins,ROW(Rēķina_informācija[])-ROW(Rēķina_informācija[#Headers])), ROW(5:5)), MATCH($E$8, Rēķina_informācija[#Headers], 0)),"") -> 4.00 EUR | F13: =IFERROR(INDEX(Rēķina_informācija[],SMALL(IF(Rēķina_informācija[Rēķina nr.]=rngRēķins,ROW(Rēķina_informācija[])-ROW(Rēķina_informācija[#Headers])), ROW(5:5)), MATCH($F$8, Rēķina_informācija[#Headers], 0)),"") -> 0 | G13: 40.00 EUR
B14: =IFERROR(INDEX(Rēķina_informācija[],SMALL(IF(Rēķina_informācija[Rēķina nr.]=rngRēķins,ROW(Rēķina_informācija[])-ROW(Rēķina_informācija[#Headers])), ROW(6:6)), MATCH($B$8, Rēķina_informācija[#Headers], 0)),"") -> Z4572 | C14: =IFERROR(INDEX(Rēķina_informācija[],SMALL(IF(Rēķina_informācija[Rēķina nr.]=rngRēķins,ROW(Rēķina_informācija[])-ROW(Rēķina_informācija[#Headers])), ROW(6:6)), MATCH($C$8, Rēķina_informācija[#Headers], 0)),"") -> Faktūrrēķins 3-456-2 dati 6 | D14: =IFERROR(INDEX(Rēķina_informācija[],SMALL(IF(Rēķina_informācija[Rēķina nr.]=rngRēķins,ROW(Rēķina_informācija[])-ROW(Rēķina_informācija[#Headers])), ROW(6:6)), MATCH($D$8, Rēķina_informācija[#Headers], 0)),"") -> 5 | E14: =IFERROR(INDEX(Rēķina_informācija[],SMALL(IF(Rēķina_informācija[Rēķina nr.]=rngRēķins,ROW(Rēķina_informācija[])-ROW(Rēķina_informācija[#Headers])), ROW(6:6)), MATCH($E$8, Rēķina_informācija[#Headers], 0)),"") -> 8.00 EUR | F14: =IFERROR(INDEX(Rēķina_informācija[],SMALL(IF(Rēķina_informācija[Rēķina nr.]=rngRēķins,ROW(Rēķina_informācija[])-ROW(Rēķina_informācija[#Headers])), ROW(6:6)), MATCH($F$8, Rēķina_informācija[#Headers], 0)),"") -> 0 | G14: 40.00 EUR
B15: =IFERROR(INDEX(Rēķina_informācija[],SMALL(IF(Rēķina_informācija[Rēķina nr.]=rngRēķins,ROW(Rēķina_informācija[])-ROW(Rēķina_informācija[#Headers])), ROW(7:7)), MATCH($B$8, Rēķina_informācija[#Headers], 0)),"") -> Z4573 | C15: =IFERROR(INDEX(Rēķina_informācija[],SMALL(IF(Rēķina_informācija[Rēķina nr.]=rngRēķins,ROW(Rēķina_informācija[])-ROW(Rēķina_informācija[#Headers])), ROW(7:7)), MATCH($C$8, Rēķina_informācija[#Headers], 0)),"") -> Faktūrrēķins 3-456-2 dati 7 | D15: =IFERROR(INDEX(Rēķina_informācija[],SMALL(IF(Rēķina_informācija[Rēķina nr.]=rngRēķins,ROW(Rēķina_informācija[])-ROW(Rēķina_informācija[#Headers])), ROW(7:7)), MATCH($D$8, Rēķina_informācija[#Headers], 0)),"") -> 70 | E15: =IFERROR(INDEX(Rēķina_informācija[],SMALL(IF(Rēķina_informācija[Rēķina nr.]=rngRēķins,ROW(Rēķina_informācija[])-ROW(Rēķina_informācija[#Headers])), ROW(7:7)), MATCH($E$8, Rēķina_informācija[#Headers], 0)),"") -> 6.00 EUR | F15: =IFERROR(INDEX(Rēķina_informācija[],SMALL(IF(Rēķina_informācija[Rēķina nr.]=rngRēķins,ROW(Rēķina_informācija[])-ROW(Rēķina_informācija[#Headers])), ROW(7:7)), MATCH($F$8, Rēķina_informācija[#Headers], 0)),"") -> 0 | G15: 420.00 EUR
B16: =IFERROR(INDEX(Rēķina_informācija[],SMALL(IF(Rēķina_informācija[Rēķina nr.]=rngRēķins,ROW(Rēķina_informācija[])-ROW(Rēķina_informācija[#Headers])), ROW(8:8)), MATCH($B$8, Rēķina_informācija[#Headers], 0)),"") -> Z4574 | C16: =IFERROR(INDEX(Rēķina_informācija[],SMALL(IF(Rēķina_informācija[Rēķina nr.]=rngRēķins,ROW(Rēķina_informācija[])-ROW(Rēķina_informācija[#Headers])), ROW(8:8)), MATCH($C$8, Rēķina_informācija[#Headers], 0)),"") -> Faktūrrēķins 3-456-2 dati 8 | D16: =IFERROR(INDEX(Rēķina_informācija[],SMALL(IF(Rēķina_informācija[Rēķina nr.]=rngRēķins,ROW(Rēķina_informācija[])-ROW(Rēķina_informācija[#Headers])), ROW(8:8)), MATCH($D$8, Rēķina_informācija[#Headers], 0)),"") -> 25 | E16: =IFERROR(INDEX(Rēķina_informācija[],SMALL(IF(Rēķina_informācija[Rēķina nr.]=rngRēķins,ROW(Rēķina_informācija[])-ROW(Rēķina_informācija[#Headers])), ROW(8:8)), MATCH($E$8, Rēķina_informācija[#Headers], 0)),"") -> 4.00 EUR | F16: =IFERROR(INDEX(Rēķina_informācija[],SMALL(IF(Rēķina_informācija[Rēķina nr.]=rngRēķins,ROW(Rēķina_informācija[])-ROW(Rēķina_informācija[#Headers])), ROW(8:8)), MATCH($F$8, Rēķina_informācija[#Headers], 0)),"") -> 0 | G16: 100.00 EUR
B17: =IFERROR(INDEX(Rēķina_informācija[],SMALL(IF(Rēķina_informācija[Rēķina nr.]=rngRēķins,ROW(Rēķina_informācija[])-ROW(Rēķina_informācija[#Headers])), ROW(9:9)), MATCH($B$8, Rēķina_informācija[#Headers], 0)),"") -> Z4575 | C17: =IFERROR(INDEX(Rēķina_informācija[],SMALL(IF(Rēķina_informācija[Rēķina nr.]=rngRēķins,ROW(Rēķina_informācija[])-ROW(Rēķina_informācija[#Headers])), ROW(9:9)), MATCH($C$8, Rēķina_informācija[#Headers], 0)),"") -> Faktūrrēķins 3-456-2 dati 9 | D17: =IFERROR(INDEX(Rēķina_informācija[],SMALL(IF(Rēķina_informācija[Rēķina nr.]=rngRēķins,ROW(Rēķina_informācija[])-ROW(Rēķina_informācija[#Headers])), ROW(9:9)), MATCH($D$8, Rēķina_informācija[#Headers], 0)),"") -> 5 | E17: =IFERROR(INDEX(Rēķina_informācija[],SMALL(IF(Rēķina_informācija[Rēķina nr.]=rngRēķins,ROW(Rēķina_informācija[])-ROW(Rēķina_informācija[#Headers])), ROW(9:9)), MATCH($E$8, Rēķina_informācija[#Headers], 0)),"") -> 7.00 EUR | F17: =IFERROR(INDEX(Rēķina_informācija[],SMALL(IF(Rēķina_informācija[Rēķina nr.]=rngRēķins,ROW(Rēķina_informācija[])-ROW(Rēķina_informācija[#Headers])), ROW(9:9)), MATCH($F$8, Rēķina_informācija[#Headers], 0)),"") -> 3.00 EUR | G17: 32.00 EUR
B18: =IFERROR(INDEX(Rēķina_informācija[],SMALL(IF(Rēķina_informācija[Rēķina nr.]=rngRēķins,ROW(Rēķina_informācija[])-ROW(Rēķina_informācija[#Headers])), ROW(10:10)), MATCH($B$8, Rēķina_informācija[#Headers], 0)),"") -> Z4576 | C18: =IFERROR(INDEX(Rēķina_informācija[],SMALL(IF(Rēķina_informācija[Rēķina nr.]=rngRēķins,ROW(Rēķina_informācija[])-ROW(Rēķina_informācija[#Headers])), ROW(10:10)), MATCH($C$8, Rēķina_informācija[#Headers], 0)),"") -> Faktūrrēķins 3-456-2 dati 10 | D18: =IFERROR(INDEX(Rēķina_informācija[],SMALL(IF(Rēķina_informācija[Rēķina nr.]=rngRēķins,ROW(Rēķina_informācija[])-ROW(Rēķina_informācija[#Headers])), ROW(10:10)), MATCH($D$8, Rēķina_informācija[#Headers], 0)),"") -> 80 | E18: =IFERROR(INDEX(Rēķina_informācija[],SMALL(IF(Rēķina_informācija[Rēķina nr.]=rngRēķins,ROW(Rēķina_informācija[])-ROW(Rēķina_informācija[#Headers])), ROW(10:10)), MATCH($E$8, Rēķina_informācija[#Headers], 0)),"") -> 1.00 EUR | F18: =IFERROR(INDEX(Rēķina_informācija[],SMALL(IF(Rēķina_informācija[Rēķina nr.]=rngRēķins,ROW(Rēķina_informācija[])-ROW(Rēķina_informācija[#Headers])), ROW(10:10)), MATCH($F$8, Rēķina_informācija[#Headers], 0)),"") -> 0 | G18: 80.00 EUR
B19: =IFERROR(INDEX(Rēķina_informācija[],SMALL(IF(Rēķina_informācija[Rēķina nr.]=rngRēķins,ROW(Rēķina_informācija[])-ROW(Rēķina_informācija[#Headers])), ROW(11:11)), MATCH($B$8, Rēķina_informācija[#Headers], 0)),"") -> Z4577 | C19: =IFERROR(INDEX(Rēķina_informācija[],SMALL(IF(Rēķina_informācija[Rēķina nr.]=rngRēķins,ROW(Rēķina_informācija[])-ROW(Rēķina_informācija[#Headers])), ROW(11:11)), MATCH($C$8, Rēķina_informācija[#Headers], 0)),"") -> Faktūrrēķins 3-456-2 dati 11 | D19: =IFERROR(INDEX(Rēķina_informācija[],SMALL(IF(Rēķina_informācija[Rēķina nr.]=rngRēķins,ROW(Rēķina_informācija[])-ROW(Rēķina_informācija[#Headers])), ROW(11:11)), MATCH($D$8, Rēķina_informācija[#Headers], 0)),"") -> 65 | E19: =IFERROR(INDEX(Rēķina_informācija[],SMALL(IF(Rēķina_informācija[Rēķina nr.]=rngRēķins,ROW(Rēķina_informācija[])-ROW(Rēķina_informācija[#Headers])), ROW(11:11)), MATCH($E$8, Rēķina_informācija[#Headers], 0)),"") -> 7.00 EUR | F19: =IFERROR(INDEX(Rēķina_informācija[],SMALL(IF(Rēķina_informācija[Rēķina nr.]=rngRēķins,ROW(Rēķina_informācija[])-ROW(Rēķina_informācija[#Headers])), ROW(11:11)), MATCH($F$8, Rēķina_informācija[#Headers], 0)),"") -> 0 | G19: 455.00 EUR
B20: =IFERROR(INDEX(Rēķina_informācija[],SMALL(IF(Rēķina_informācija[Rēķina nr.]=rngRēķins,ROW(Rēķina_informācija[])-ROW(Rēķina_informācija[#Headers])), ROW(12:12)), MATCH($B$8, Rēķina_informācija[#Headers], 0)),"") -> Z4578 | C20: =IFERROR(INDEX(Rēķina_informācija[],SMALL(IF(Rēķina_informācija[Rēķina nr.]=rngRēķins,ROW(Rēķina_informācija[])-ROW(Rēķina_informācija[#Headers])), ROW(12:12)), MATCH($C$8, Rēķina_informācija[#Headers], 0)),"") -> Faktūrrēķins 3-456-2 dati 12 | D20: =IFERROR(INDEX(Rēķina_informācija[],SMALL(IF(Rēķina_informācija[Rēķina nr.]=rngRēķins,ROW(Rēķina_informācija[])-ROW(Rēķina_informācija[#Headers])), ROW(12:12)), MATCH($D$8, Rēķina_informācija[#Headers], 0)),"") -> 44 | E20: =IFERROR(INDEX(Rēķina_informācija[],SMALL(IF(Rēķina_informācija[Rēķina nr.]=rngRēķins,ROW(Rēķina_informācija[])-ROW(Rēķina_informācija[#Headers])), ROW(12:12)), MATCH($E$8, Rēķina_informācija[#Headers], 0)),"") -> 1.00 EUR | F20: =IFERROR(INDEX(Rēķina_informācija[],SMALL(IF(Rēķina_informācija[Rēķina nr.]=rngRēķins,ROW(Rēķina_informācija[])-ROW(Rēķina_informācija[#Headers])), ROW(12:12)), MATCH($F$8, Rēķina_informācija[#Headers], 0)),"") -> 0 | G20: 44.00 EUR
B21: =IFERROR(INDEX(Rēķina_informācija[],SMALL(IF(Rēķina_informācija[Rēķina nr.]=rngRēķins,ROW(Rēķina_informācija[])-ROW(Rēķina_informācija[#Headers])), ROW(13:13)), MATCH($B$8, Rēķina_informācija[#Headers], 0)),"") ->  | C21: =IFERROR(INDEX(Rēķina_informācija[],SMALL(IF(Rēķina_informācija[Rēķina nr.]=rngRēķins,ROW(Rēķina_informācija[])-ROW(Rēķina_informācija[#Headers])), ROW(13:13)), MATCH($C$8, Rēķina_informācija[#Headers], 0)),"") ->  | D21: =IFERROR(INDEX(Rēķina_informācija[],SMALL(IF(Rēķina_informācija[Rēķina nr.]=rngRēķins,ROW(Rēķina_informācija[])-ROW(Rēķina_informācija[#Headers])), ROW(13:13)), MATCH($D$8, Rēķina_informācija[#Headers], 0)),"") ->  | E21: =IFERROR(INDEX(Rēķina_informācija[],SMALL(IF(Rēķina_informācija[Rēķina nr.]=rngRēķins,ROW(Rēķina_informācija[])-ROW(Rēķina_informācija[#Headers])), ROW(13:13)), MATCH($E$8, Rēķina_informācija[#Headers], 0)),"") ->  | F21: =IFERROR(INDEX(Rēķina_informācija[],SMALL(IF(Rēķina_informācija[Rēķina nr.]=rngRēķins,ROW(Rēķina_informācija[])-ROW(Rēķina_informācija[#Headers])), ROW(13:13)), MATCH($F$8, Rēķina_informācija[#Headers], 0)),"") -> 
B22: =IFERROR(INDEX(Rēķina_informācija[],SMALL(IF(Rēķina_informācija[Rēķina nr.]=rngRēķins,ROW(Rēķina_informācija[])-ROW(Rēķina_informācija[#Headers])), ROW(14:14)), MATCH($B$8, Rēķina_informācija[#Headers], 0)),"") ->  | C22: =IFERROR(INDEX(Rēķina_informācija[],SMALL(IF(Rēķina_informācija[Rēķina nr.]=rngRēķins,ROW(Rēķina_informācija[])-ROW(Rēķina_informācija[#Headers])), ROW(14:14)), MATCH($C$8, Rēķina_informācija[#Headers], 0)),"") ->  | D22: =IFERROR(INDEX(Rēķina_informācija[],SMALL(IF(Rēķina_informācija[Rēķina nr.]=rngRēķins,ROW(Rēķina_informācija[])-ROW(Rēķina_informācija[#Headers])), ROW(14:14)), MATCH($D$8, Rēķina_informācija[#Headers], 0)),"") ->  | E22: =IFERROR(INDEX(Rēķina_informācija[],SMALL(IF(Rēķina_informācija[Rēķina nr.]=rngRēķins,ROW(Rēķina_informācija[])-ROW(Rēķina_informācija[#Headers])), ROW(14:14)), MATCH($E$8, Rēķina_informācija[#Headers], 0)),"") ->  | F22: =IFERROR(INDEX(Rēķina_informācija[],SMALL(IF(Rēķina_informācija[Rēķina nr.]=rngRēķins,ROW(Rēķina_informācija[])-ROW(Rēķina_informācija[#Headers])), ROW(14:14)), MATCH($F$8, Rēķina_informācija[#Headers], 0)),"") -> 
B23: =IFERROR(INDEX(Rēķina_informācija[],SMALL(IF(Rēķina_informācija[Rēķina nr.]=rngRēķins,ROW(Rēķina_informācija[])-ROW(Rēķina_informācija[#Headers])), ROW(15:15)), MATCH($B$8, Rēķina_informācija[#Headers], 0)),"") ->  | C23: =IFERROR(INDEX(Rēķina_informācija[],SMALL(IF(Rēķina_informācija[Rēķina nr.]=rngRēķins,ROW(Rēķina_informācija[])-ROW(Rēķina_informācija[#Headers])), ROW(15:15)), MATCH($C$8, Rēķina_informācija[#Headers], 0)),"") ->  | D23: =IFERROR(INDEX(Rēķina_informācija[],SMALL(IF(Rēķina_informācija[Rēķina nr.]=rngRēķins,ROW(Rēķina_informācija[])-ROW(Rēķina_informācija[#Headers])), ROW(15:15)), MATCH($D$8, Rēķina_informācija[#Headers], 0)),"") ->  | E23: =IFERROR(INDEX(Rēķina_informācija[],SMALL(IF(Rēķina_informācija[Rēķina nr.]=rngRēķins,ROW(Rēķina_informācija[])-ROW(Rēķina_informācija[#Headers])), ROW(15:15)), MATCH($E$8, Rēķina_informācija[#Headers], 0)),"") ->  | F23: =IFERROR(INDEX(Rēķina_informācija[],SMALL(IF(Rēķina_informācija[Rēķina nr.]=rngRēķins,ROW(Rēķina_informācija[])-ROW(Rēķina_informācija[#Headers])), ROW(15:15)), MATCH($F$8, Rēķina_informācija[#Headers], 0)),"") -> 
B24: =IFERROR(INDEX(Rēķina_informācija[],SMALL(IF(Rēķina_informācija[Rēķina nr.]=rngRēķins,ROW(Rēķina_informācija[])-ROW(Rēķina_informācija[#Headers])), ROW(16:16)), MATCH($B$8, Rēķina_informācija[#Headers], 0)),"") ->  | C24: =IFERROR(INDEX(Rēķina_informācija[],SMALL(IF(Rēķina_informācija[Rēķina nr.]=rngRēķins,ROW(Rēķina_informācija[])-ROW(Rēķina_informācija[#Headers])), ROW(16:16)), MATCH($C$8, Rēķina_informācija[#Headers], 0)),"") ->  | D24: =IFERROR(INDEX(Rēķina_informācija[],SMALL(IF(Rēķina_informācija[Rēķina nr.]=rngRēķins,ROW(Rēķina_informācija[])-ROW(Rēķina_informācija[#Headers])), ROW(16:16)), MATCH($D$8, Rēķina_informācija[#Headers], 0)),"") ->  | E24: =IFERROR(INDEX(Rēķina_informācija[],SMALL(IF(Rēķina_informācija[Rēķina nr.]=rngRēķins,ROW(Rēķina_informācija[])-ROW(Rēķina_informācija[#Headers])), ROW(16:16)), MATCH($E$8, Rēķina_informācija[#Headers], 0)),"") ->  | F24: =IFERROR(INDEX(Rēķina_informācija[],SMALL(IF(Rēķina_informācija[Rēķina nr.]=rngRēķins,ROW(Rēķina_informācija[])-ROW(Rēķina_informācija[#Headers])), ROW(16:16)), MATCH($F$8, Rēķina_informācija[#Headers], 0)),"") -> 
B25: =IFERROR(INDEX(Rēķina_informācija[],SMALL(IF(Rēķina_informācija[Rēķina nr.]=rngRēķins,ROW(Rēķina_informācija[])-ROW(Rēķina_informācija[#Headers])), ROW(17:17)), MATCH($B$8, Rēķina_informācija[#Headers], 0)),"") ->  | C25: =IFERROR(INDEX(Rēķina_informācija[],SMALL(IF(Rēķina_informācija[Rēķina nr.]=rngRēķins,ROW(Rēķina_informācija[])-ROW(Rēķina_informācija[#Headers])), ROW(17:17)), MATCH($C$8, Rēķina_informācija[#Headers], 0)),"") ->  | D25: =IFERROR(INDEX(Rēķina_informācija[],SMALL(IF(Rēķina_informācija[Rēķina nr.]=rngRēķins,ROW(Rēķina_informācija[])-ROW(Rēķina_informācija[#Headers])), ROW(17:17)), MATCH($D$8, Rēķina_informācija[#Headers], 0)),"") ->  | E25: =IFERROR(INDEX(Rēķina_informācija[],SMALL(IF(Rēķina_informācija[Rēķina nr.]=rngRēķins,ROW(Rēķina_informācija[])-ROW(Rēķina_informācija[#Headers])), ROW(17:17)), MATCH($E$8, Rēķina_informācija[#Headers], 0)),"") ->  | F25: =IFERROR(INDEX(Rēķina_informācija[],SMALL(IF(Rēķina_informācija[Rēķina nr.]=rngRēķins,ROW(Rēķina_informācija[])-ROW(Rēķina_informācija[#Headers])), ROW(17:17)), MATCH($F$8, Rēķina_informācija[#Headers], 0)),"") -> 
B26: =IFERROR(INDEX(Rēķina_informācija[],SMALL(IF(Rēķina_informācija[Rēķina nr.]=rngRēķins,ROW(Rēķina_informācija[])-ROW(Rēķina_informācija[#Headers])), ROW(18:18)), MATCH($B$8, Rēķina_informācija[#Headers], 0)),"") ->  | C26: =IFERROR(INDEX(Rēķina_informācija[],SMALL(IF(Rēķina_informācija[Rēķina nr.]=rngRēķins,ROW(Rēķina_informācija[])-ROW(Rēķina_informācija[#Headers])), ROW(18:18)), MATCH($C$8, Rēķina_informācija[#Headers], 0)),"") ->  | D26: =IFERROR(INDEX(Rēķina_informācija[],SMALL(IF(Rēķina_informācija[Rēķina nr.]=rngRēķins,ROW(Rēķina_informācija[])-ROW(Rēķina_informācija[#Headers])), ROW(18:18)), MATCH($D$8, Rēķina_informācija[#Headers], 0)),"") ->  | E26: =IFERROR(INDEX(Rēķina_informācija[],SMALL(IF(Rēķina_informācija[Rēķina nr.]=rngRēķins,ROW(Rēķina_informācija[])-ROW(Rēķina_informācija[#Headers])), ROW(18:18)), MATCH($E$8, Rēķina_informācija[#Headers], 0)),"") ->  | F26: =IFERROR(INDEX(Rēķina_informācija[],SMALL(IF(Rēķina_informācija[Rēķina nr.]=rngRēķins,ROW(Rēķina_informācija[])-ROW(Rēķina_informācija[#Headers])), ROW(18:18)), MATCH($F$8, Rēķina_informācija[#Headers], 0)),"") -> 
B27: =IFERROR(INDEX(Rēķina_informācija[],SMALL(IF(Rēķina_informācija[Rēķina nr.]=rngRēķins,ROW(Rēķina_informācija[])-ROW(Rēķina_informācija[#Headers])), ROW(19:19)), MATCH($B$8, Rēķina_informācija[#Headers], 0)),"") ->  | C27: =IFERROR(INDEX(Rēķina_informācija[],SMALL(IF(Rēķina_informācija[Rēķina nr.]=rngRēķins,ROW(Rēķina_informācija[])-ROW(Rēķina_informācija[#Headers])), ROW(19:19)), MATCH($C$8, Rēķina_informācija[#Headers], 0)),"") ->  | D27: =IFERROR(INDEX(Rēķina_informācija[],SMALL(IF(Rēķina_informācija[Rēķina nr.]=rngRēķins,ROW(Rēķina_informācija[])-ROW(Rēķina_informācija[#Headers])), ROW(19:19)), MATCH($D$8, Rēķina_informācija[#Headers], 0)),"") ->  | E27: =IFERROR(INDEX(Rēķina_informācija[],SMALL(IF(Rēķina_informācija[Rēķina nr.]=rngRēķins,ROW(Rēķina_informācija[])-ROW(Rēķina_informācija[#Headers])), ROW(19:19)), MATCH($E$8, Rēķina_informācija[#Headers], 0)),"") ->  | F27: =IFERROR(INDEX(Rēķina_informācija[],SMALL(IF(Rēķina_informācija[Rēķina nr.]=rngRēķins,ROW(Rēķina_informācija[])-ROW(Rēķina_informācija[#Headers])), ROW(19:19)), MATCH($F$8, Rēķina_informācija[#Headers], 0)),"") -> 
B28: =IFERROR(INDEX(Rēķina_informācija[],SMALL(IF(Rēķina_informācija[Rēķina nr.]=rngRēķins,ROW(Rēķina_informācija[])-ROW(Rēķina_informācija[#Headers])), ROW(20:20)), MATCH($B$8, Rēķina_informācija[#Headers], 0)),"") ->  | C28: =IFERROR(INDEX(Rēķina_informācija[],SMALL(IF(Rēķina_informācija[Rēķina nr.]=rngRēķins,ROW(Rēķina_informācija[])-ROW(Rēķina_informācija[#Headers])), ROW(20:20)), MATCH($C$8, Rēķina_informācija[#Headers], 0)),"") ->  | D28: =IFERROR(INDEX(Rēķina_informācija[],SMALL(IF(Rēķina_informācija[Rēķina nr.]=rngRēķins,ROW(Rēķina_informācija[])-ROW(Rēķina_informācija[#Headers])), ROW(20:20)), MATCH($D$8, Rēķina_informācija[#Headers], 0)),"") ->  | E28: =IFERROR(INDEX(Rēķina_informācija[],SMALL(IF(Rēķina_informācija[Rēķina nr.]=rngRēķins,ROW(Rēķina_informācija[])-ROW(Rēķina_informācija[#Headers])), ROW(20:20)), MATCH($E$8, Rēķina_informācija[#Headers], 0)),"") ->  | F28: =IFERROR(INDEX(Rēķina_informācija[],SMALL(IF(Rēķina_informācija[Rēķina nr.]=rngRēķins,ROW(Rēķina_informācija[])-ROW(Rēķina_informācija[#Headers])), ROW(20:20)), MATCH($F$8, Rēķina_informācija[#Headers], 0)),"") -> 
B29: =IFERROR(INDEX(Rēķina_informācija[],SMALL(IF(Rēķina_informācija[Rēķina nr.]=rngRēķins,ROW(Rēķina_informācija[])-ROW(Rēķina_informācija[#Headers])), ROW(21:21)), MATCH($B$8, Rēķina_informācija[#Headers], 0)),"") ->  | C29: =IFERROR(INDEX(Rēķina_informācija[],SMALL(IF(Rēķina_informācija[Rēķina nr.]=rngRēķins,ROW(Rēķina_informācija[])-ROW(Rēķina_informācija[#Headers])), ROW(21:21)), MATCH($C$8, Rēķina_informācija[#Headers], 0)),"") ->  | D29: =IFERROR(INDEX(Rēķina_informācija[],SMALL(IF(Rēķina_informācija[Rēķina nr.]=rngRēķins,ROW(Rēķina_informācija[])-ROW(Rēķina_informācija[#Headers])), ROW(21:21)), MATCH($D$8, Rēķina_informācija[#Headers], 0)),"") ->  | E29: =IFERROR(INDEX(Rēķina_informācija[],SMALL(IF(Rēķina_informācija[Rēķina nr.]=rngRēķins,ROW(Rēķina_informācija[])-ROW(Rēķina_informācija[#Headers])), ROW(21:21)), MATCH($E$8, Rēķina_informācija[#Headers], 0)),"") ->  | F29: =IFERROR(INDEX(Rēķina_informācija[],SMALL(IF(Rēķina_informācija[Rēķina nr.]=rngRēķins,ROW(Rēķina_informācija[])-ROW(Rēķina_informācija[#Headers])), ROW(21:21)), MATCH($F$8, Rēķina_informācija[#Headers], 0)),"") -> 
B30: =IFERROR(INDEX(Rēķina_informācija[],SMALL(IF(Rēķina_informācija[Rēķina nr.]=rngRēķins,ROW(Rēķina_informācija[])-ROW(Rēķina_informācija[#Headers])), ROW(22:22)), MATCH($B$8, Rēķina_informācija[#Headers], 0)),"") ->  | C30: =IFERROR(INDEX(Rēķina_informācija[],SMALL(IF(Rēķina_informācija[Rēķina nr.]=rngRēķins,ROW(Rēķina_informācija[])-ROW(Rēķina_informācija[#Headers])), ROW(22:22)), MATCH($C$8, Rēķina_informācija[#Headers], 0)),"") ->  | D30: =IFERROR(INDEX(Rēķina_informācija[],SMALL(IF(Rēķina_informācija[Rēķina nr.]=rngRēķins,ROW(Rēķina_informācija[])-ROW(Rēķina_informācija[#Headers])), ROW(22:22)), MATCH($D$8, Rēķina_informācija[#Headers], 0)),"") ->  | E30: =IFERROR(INDEX(Rēķina_informācija[],SMALL(IF(Rēķina_informācija[Rēķina nr.]=rngRēķins,ROW(Rēķina_informācija[])-ROW(Rēķina_informācija[#Headers])), ROW(22:22)), MATCH($E$8, Rēķina_informācija[#Headers], 0)),"") ->  | F30: =IFERROR(INDEX(Rēķina_informācija[],SMALL(IF(Rēķina_informācija[Rēķina nr.]=rngRēķins,ROW(Rēķina_informācija[])-ROW(Rēķina_informācija[#Headers])), ROW(22:22)), MATCH($F$8, Rēķina_informācija[#Headers], 0)),"") -> 
B31: =IFERROR(INDEX(Rēķina_informācija[],SMALL(IF(Rēķina_informācija[Rēķina nr.]=rngRēķins,ROW(Rēķina_informācija[])-ROW(Rēķina_informācija[#Headers])), ROW(23:23)), MATCH($B$8, Rēķina_informācija[#Headers], 0)),"") ->  | C31: =IFERROR(INDEX(Rēķina_informācija[],SMALL(IF(Rēķina_informācija[Rēķina nr.]=rngRēķins,ROW(Rēķina_informācija[])-ROW(Rēķina_informācija[#Headers])), ROW(23:23)), MATCH($C$8, Rēķina_informācija[#Headers], 0)),"") ->  | D31: =IFERROR(INDEX(Rēķina_informācija[],SMALL(IF(Rēķina_informācija[Rēķina nr.]=rngRēķins,ROW(Rēķina_informācija[])-ROW(Rēķina_informācija[#Headers])), ROW(23:23)), MATCH($D$8, Rēķina_informācija[#Headers], 0)),"") ->  | E31: =IFERROR(INDEX(Rēķina_informācija[],SMALL(IF(Rēķina_informācija[Rēķina nr.]=rngRēķins,ROW(Rēķina_informācija[])-ROW(Rēķina_informācija[#Headers])), ROW(23:23)), MATCH($E$8, Rēķina_informācija[#Headers], 0)),"") ->  | F31: =IFERROR(INDEX(Rēķina_informācija[],SMALL(IF(Rēķina_informācija[Rēķina nr.]=rngRēķins,ROW(Rēķina_informācija[])-ROW(Rēķina_informācija[#Headers])), ROW(23:23)), MATCH($F$8, Rēķina_informācija[#Headers], 0)),"") -> 
B32: =IFERROR(INDEX(Rēķina_informācija[],SMALL(IF(Rēķina_informācija[Rēķina nr.]=rngRēķins,ROW(Rēķina_informācija[])-ROW(Rēķina_informācija[#Headers])), ROW(24:24)), MATCH($B$8, Rēķina_informācija[#Headers], 0)),"") ->  | C32: =IFERROR(INDEX(Rēķina_informācija[],SMALL(IF(Rēķina_informācija[Rēķina nr.]=rngRēķins,ROW(Rēķina_informācija[])-ROW(Rēķina_informācija[#Headers])), ROW(24:24)), MATCH($C$8, Rēķina_informācija[#Headers], 0)),"") ->  | D32: =IFERROR(INDEX(Rēķina_informācija[],SMALL(IF(Rēķina_informācija[Rēķina nr.]=rngRēķins,ROW(Rēķina_informācija[])-ROW(Rēķina_informācija[#Headers])), ROW(24:24)), MATCH($D$8, Rēķina_informācija[#Headers], 0)),"") ->  | E32: =IFERROR(INDEX(Rēķina_informācija[],SMALL(IF(Rēķina_informācija[Rēķina nr.]=rngRēķins,ROW(Rēķina_informācija[])-ROW(Rēķina_informācija[#Headers])), ROW(24:24)), MATCH($E$8, Rēķina_informācija[#Headers], 0)),"") ->  | F32: =IFERROR(INDEX(Rēķina_informācija[],SMALL(IF(Rēķina_informācija[Rēķina nr.]=rngRēķins,ROW(Rēķina_informācija[])-ROW(Rēķina_informācija[#Headers])), ROW(24:24)), MATCH($F$8, Rēķina_informācija[#Headers], 0)),"") -> 
B33: =IFERROR(INDEX(Rēķina_informācija[],SMALL(IF(Rēķina_informācija[Rēķina nr.]=rngRēķins,ROW(Rēķina_informācija[])-ROW(Rēķina_informācija[#Headers])), ROW(25:25)), MATCH($B$8, Rēķina_informācija[#Headers], 0)),"") ->  | C33: =IFERROR(INDEX(Rēķina_informācija[],SMALL(IF(Rēķina_informācija[Rēķina nr.]=rngRēķins,ROW(Rēķina_informācija[])-ROW(Rēķina_informācija[#Headers])), ROW(25:25)), MATCH($C$8, Rēķina_informācija[#Headers], 0)),"") ->  | D33: =IFERROR(INDEX(Rēķina_informācija[],SMALL(IF(Rēķina_informācija[Rēķina nr.]=rngRēķins,ROW(Rēķina_informācija[])-ROW(Rēķina_informācija[#Headers])), ROW(25:25)), MATCH($D$8, Rēķina_informācija[#Headers], 0)),"") ->  | E33: =IFERROR(INDEX(Rēķina_informācija[],SMALL(IF(Rēķina_informācija[Rēķina nr.]=rngRēķins,ROW(Rēķina_informācija[])-ROW(Rēķina_informācija[#Headers])), ROW(25:25)), MATCH($E$8, Rēķina_informācija[#Headers], 0)),"") ->  | F33: =IFERROR(INDEX(Rēķina_informācija[],SMALL(IF(Rēķina_informācija[Rēķina nr.]=rngRēķins,ROW(Rēķina_informācija[])-ROW(Rēķina_informācija[#Headers])), ROW(25:25)), MATCH($F$8, Rēķina_informācija[#Headers], 0)),"") -> 
F34: Rēķina starpsumma | G34: =SUM(ProjektaRēķins[Cena]) -> 2,014.00 EUR
F35: Nodokļa likme | G35: =VLOOKUP(rngRēķins,RēķiniGalvenais[],5) -> 8.75%
F36: PVN | G36: =G34*G35 -> 176.23 EUR
F37: Cits | G37: =VLOOKUP(rngRēķins,RēķiniGalvenais[],6) -> 0
B38: ="Visi čeki ir jāsamaksā uzņēmumam "&Uzņēmuma_nosaukums&"." -> Visi čeki ir jāsamaksā uzņēmumam Uzņēmuma nosaukums. | F38: Saņemtais avanss | G38: =VLOOKUP(rngRēķins,RēķiniGalvenais[],7) -> 0
B39: Kopsumma jāapmaksā <#> dienu laikā. Kontiem ar nokavētiem maksājumiem tiks piemērota soda nauda <#>% apmērā mēnesī. | F39: Kopsumma | G39: =(G34+G36+G37)-G38 -> 2,190.23 EUR

Sheet Klienti
C2: Klienti
B3: Uzmeklēšana | C3: Uzņēmuma nr. | D3: Uzņēmuma nosaukums | E3: Kontaktpersonas vārds | F3: Adrese | G3: Pilsēta | H3: Novads | I3: Pasta indekss | J3: Tālrunis | K3: E-pasts | L3: Fakss
B4: =C4& " - "&D4 -> 1 - Pārtikas veikals Lapa | C4: 1 | D4: Pārtikas veikals Lapa | E4: Raimonds Turins | F4: Ķiršu iela 345 | G4: Valmiera | H4: Salacgrīvas | I4: 123456 | J4: 25550178 | K4: persona@example.com | L4: 25550187
B5: 2 - Contoso, Ltd | C5: 2 | D5: Contoso, Ltd | E5: Stefans Krieviņš | F5: Riekstu aleja 567 | G5: Ainaži | H5: Valmieras | I5: 098765 | J5: 25550189 | K5: persona@example.com | L5: 25550123
B6: Kopsummas | C6: ="Klienti kopā: "&SUBTOTAL(103,KlientuSaraksts[Uzņēmuma nr.]) -> Klienti kopā: 2

Sheet Rēķini — galvenā
B2: Rēķini
B3: Rēķina nr. | C3: Uzņēmums | D3: Rēķina datums | E3: Projekta apraksts | F3: Nodokļa likme | G3: Cits | H3: Avanss | I3: Detalizēta kopsumma | J3: Rēķinu kopsumma | K3: Piezīmes
B4: 3-456-1 | C4: 1 - Pārtikas veikals Lapa | D4: =TODAY() -> 4367800.00% | E4: 1. projekts | F4: 8.75% | G4: 100.00 EUR | H4: 100.00 EUR | I4: =SUMIF(Rēķina_informācija[Rēķina nr.],"="&RēķiniGalvenais[[#This Row],[Rēķina nr.]],Rēķina_informācija[Kopsumma]) -> 5,200.00 EUR | J4: =(RēķiniGalvenais[[#This Row],[Detalizēta kopsumma]]*(1+RēķiniGalvenais[[#This Row],[Nodokļa likme]]))+RēķiniGalvenais[[#This Row],[Cits]]-RēķiniGalvenais[[#This Row],[Avanss]] -> 5,655.00 EUR
B5: 3-456-2 | C5: 2 - Contoso, Ltd | D5: =TODAY()+10 -> 4368800.00% | E5: 2. projekts | F5: 8.75% | I5: =SUMIF(Rēķina_informācija[Rēķina nr.],"="&RēķiniGalvenais[[#This Row],[Rēķina nr.]],Rēķina_informācija[Kopsumma]) -> 2,014.00 EUR | J5: =(RēķiniGalvenais[[#This Row],[Detalizēta kopsumma]]*(1+RēķiniGalvenais[[#This Row],[Nodokļa likme]]))+RēķiniGalvenais[[#This Row],[Cits]]-RēķiniGalvenais[[#This Row],[Avanss]] -> 2,190.23 EUR
B6: Kopsummas | C6: ="Rēķinu kopskaits: "&SUBTOTAL(103,RēķiniGalvenais[Rēķina nr.]) -> Rēķinu kopskaits: 2 | G6: =SUBTOTAL(109,RēķiniGalvenais[Cits]) -> 100.00 EUR | H6: =SUBTOTAL(109,RēķiniGalvenais[Avanss]) -> 100.00 EUR | I6: =SUBTOTAL(109,RēķiniGalvenais[Detalizēta kopsumma]) -> 7,214.00 EUR | J6: =SUBTOTAL(109,RēķiniGalvenais[Rēķinu kopsumma]) -> 7,845.23 EUR

Sheet Rēķina detalizētā informācija
B2: Rēķina detalizētā informācija
B3: Apraksts | C3: Rēķina nr. | D3: Priekšmeta nr. | E3: Daudz. | F3: Vienības cena | G3: Atlaide | H3: Kopsumma
B4: Faktūrrēķins 3-456-1 dati 1 | C4: 3-456-1 | D4: 1 | E4: 1 | F4: 1.00 EUR | G4: 1.00 EUR | H4: =(Rēķina_informācija[[#This Row],[Daudz.]]*Rēķina_informācija[[#This Row],[Vienības cena]])-Rēķina_informācija[[#This Row],[Atlaide]] -> 0.00 EUR
B5: Faktūrrēķins 3-456-1 dati 2 | C5: 3-456-1 | D5: 2 | E5: 2 | F5: 2.00 EUR | G5: 2.00 EUR | H5: =(Rēķina_informācija[[#This Row],[Daudz.]]*Rēķina_informācija[[#This Row],[Vienības cena]])-Rēķina_informācija[[#This Row],[Atlaide]] -> 2.00 EUR
B6: Faktūrrēķins 3-456-1 dati 3 | C6: 3-456-1 | D6: 3 | E6: 3 | F6: 3.00 EUR | G6: 3.00 EUR | H6: =(Rēķina_informācija[[#This Row],[Daudz.]]*Rēķina_informācija[[#This Row],[Vienības cena]])-Rēķina_informācija[[#This Row],[Atlaide]] -> 6.00 EUR
B7: Faktūrrēķins 3-456-1 dati 4 | C7: 3-456-1 | D7: 4 | E7: 4 | F7: 4.00 EUR | G7: 4.00 EUR | H7: =(Rēķina_informācija[[#This Row],[Daudz.]]*Rēķina_informācija[[#This Row],[Vienības cena]])-Rēķina_informācija[[#This Row],[Atlaide]] -> 12.00 EUR
B8: Faktūrrēķins 3-456-1 dati 5 | C8: 3-456-1 | D8: 5 | E8: 5 | F8: 5.00 EUR | G8: 5.00 EUR | H8: =(Rēķina_informācija[[#This Row],[Daudz.]]*Rēķina_informācija[[#This Row],[Vienības cena]])-Rēķina_informācija[[#This Row],[Atlaide]] -> 20.00 EUR
B9: Faktūrrēķins 3-456-1 dati 6 | C9: 3-456-1 | D9: 6 | E9: 6 | F9: 6.00 EUR | G9: 6.00 EUR | H9: =(Rēķina_informācija[[#This Row],[Daudz.]]*Rēķina_informācija[[#This Row],[Vienības cena]])-Rēķina_informācija[[#This Row],[Atlaide]] -> 30.00 EUR
B10: Faktūrrēķins 3-456-1 dati 7 | C10: 3-456-1 | D10: 7 | E10: 7 | F10: 7.00 EUR | G10: 7.00 EUR | H10: =(Rēķina_informācija[[#This Row],[Daudz.]]*Rēķina_informācija[[#This Row],[Vienības cena]])-Rēķina_informācija[[#This Row],[Atlaide]] -> 42.00 EUR
B11: Faktūrrēķins 3-456-1 dati 8 | C11: 3-456-1 | D11: 8 | E11: 8 | F11: 8.00 EUR | G11: 8.00 EUR | H11: =(Rēķina_informācija[[#This Row],[Daudz.]]*Rēķina_informācija[[#This Row],[Vienības cena]])-Rēķina_informācija[[#This Row],[Atlaide]] -> 56.00 EUR
B12: Faktūrrēķins 3-456-1 dati 9 | C12: 3-456-1 | D12: 9 | E12: 9 | F12: 9.00 EUR | G12: 9.00 EUR | H12: =(Rēķina_informācija[[#This Row],[Daudz.]]*Rēķina_informācija[[#This Row],[Vienības cena]])-Rēķina_informācija[[#This Row],[Atlaide]] -> 72.00 EUR
B13: Faktūrrēķins 3-456-1 dati 10 | C13: 3-456-1 | D13: 10 | E13: 10 | F13: 10.00 EUR | G13: 10.00 EUR | H13: =(Rēķina_informācija[[#This Row],[Daudz.]]*Rēķina_informācija[[#This Row],[Vienības cena]])-Rēķina_informācija[[#This Row],[Atlaide]] -> 90.00 EUR
B14: Faktūrrēķins 3-456-1 dati 11 | C14: 3-456-1 | D14: 11 | E14: 11 | F14: 11.00 EUR | G14: 11.00 EUR | H14: =(Rēķina_informācija[[#This Row],[Daudz.]]*Rēķina_informācija[[#This Row],[Vienības cena]])-Rēķina_informācija[[#This Row],[Atlaide]] -> 110.00 EUR
B15: Faktūrrēķins 3-456-1 dati 12 | C15: 3-456-1 | D15: 12 | E15: 12 | F15: 12.00 EUR | G15: 12.00 EUR | H15: =(Rēķina_informācija[[#This Row],[Daudz.]]*Rēķina_informācija[[#This Row],[Vienības cena]])-Rēķina_informācija[[#This Row],[Atlaide]] -> 132.00 EUR
B16: Faktūrrēķins 3-456-1 dati 13 | C16: 3-456-1 | D16: 13 | E16: 13 | F16: 13.00 EUR | G16: 13.00 EUR | H16: =(Rēķina_informācija[[#This Row],[Daudz.]]*Rēķina_informācija[[#This Row],[Vienības cena]])-Rēķina_informācija[[#This Row],[Atlaide]] -> 156.00 EUR
B17: Faktūrrēķins 3-456-1 dati 14 | C17: 3-456-1 | D17: 14 | E17: 14 | F17: 14.00 EUR | G17: 14.00 EUR | H17: =(Rēķina_informācija[[#This Row],[Daudz.]]*Rēķina_informācija[[#This Row],[Vienības cena]])-Rēķina_informācija[[#This Row],[Atlaide]] -> 182.00 EUR
B18: Faktūrrēķins 3-456-1 dati 15 | C18: 3-456-1 | D18: 15 | E18: 15 | F18: 15.00 EUR | G18: 15.00 EUR | H18: =(Rēķina_informācija[[#This Row],[Daudz.]]*Rēķina_informācija[[#This Row],[Vienības cena]])-Rēķina_informācija[[#This Row],[Atlaide]] -> 210.00 EUR
B19: Faktūrrēķins 3-456-1 dati 16 | C19: 3-456-1 | D19: 16 | E19: 16 | F19: 16.00 EUR | G19: 16.00 EUR | H19: =(Rēķina_informācija[[#This Row],[Daudz.]]*Rēķina_informācija[[#This Row],[Vienības cena]])-Rēķina_informācija[[#This Row],[Atlaide]] -> 240.00 EUR
B20: Faktūrrēķins 3-456-1 dati 17 | C20: 3-456-1 | D20: 17 | E20: 17 | F20: 17.00 EUR | G20: 17.00 EUR | H20: =(Rēķina_informācija[[#This Row],[Daudz.]]*Rēķina_informācija[[#This Row],[Vienības cena]])-Rēķina_informācija[[#This Row],[Atlaide]] -> 272.00 EUR
B21: Faktūrrēķins 3-456-1 dati 18 | C21: 3-456-1 | D21: 18 | E21: 18 | F21: 18.00 EUR | G21: 18.00 EUR | H21: =(Rēķina_informācija[[#This Row],[Daudz.]]*Rēķina_informācija[[#This Row],[Vienības cena]])-Rēķina_informācija[[#This Row],[Atlaide]] -> 306.00 EUR
B22: Faktūrrēķins 3-456-1 dati 19 | C22: 3-456-1 | D22: 19 | E22: 19 | F22: 19.00 EUR | G22: 19.00 EUR | H22: =(Rēķina_informācija[[#This Row],[Daudz.]]*Rēķina_informācija[[#This Row],[Vienības cena]])-Rēķina_informācija[[#This Row],[Atlaide]] -> 342.00 EUR
B23: Faktūrrēķins 3-456-1 dati 20 | C23: 3-456-1 | D23: 20 | E23: 20 | F23: 20.00 EUR | G23: 20.00 EUR | H23: =(Rēķina_informācija[[#This Row],[Daudz.]]*Rēķina_informācija[[#This Row],[Vienības cena]])-Rēķina_informācija[[#This Row],[Atlaide]] -> 380.00 EUR
B24: Faktūrrēķins 3-456-1 dati 21 | C24: 3-456-1 | D24: 21 | E24: 21 | F24: 21.00 EUR | G24: 21.00 EUR | H24: =(Rēķina_informācija[[#This Row],[Daudz.]]*Rēķina_informācija[[#This Row],[Vienības cena]])-Rēķina_informācija[[#This Row],[Atlaide]] -> 420.00 EUR
B25: Faktūrrēķins 3-456-1 dati 22 | C25: 3-456-1 | D25: 22 | E25: 22 | F25: 22.00 EUR | G25: 22.00 EUR | H25: =(Rēķina_informācija[[#This Row],[Daudz.]]*Rēķina_informācija[[#This Row],[Vienības cena]])-Rēķina_informācija[[#This Row],[Atlaide]] -> 462.00 EUR
B26: Faktūrrēķins 3-456-1 dati 23 | C26: 3-456-1 | D26: 23 | E26: 23 | F26: 23.00 EUR | G26: 23.00 EUR | H26: =(Rēķina_informācija[[#This Row],[Daudz.]]*Rēķina_informācija[[#This Row],[Vienības cena]])-Rēķina_informācija[[#This Row],[Atlaide]] -> 506.00 EUR
B27: Faktūrrēķins 3-456-1 dati 24 | C27: 3-456-1 | D27: 24 | E27: 24 | F27: 24.00 EUR | G27: 24.00 EUR | H27: =(Rēķina_informācija[[#This Row],[Daudz.]]*Rēķina_informācija[[#This Row],[Vienības cena]])-Rēķina_informācija[[#This Row],[Atlaide]] -> 552.00 EUR
B28: Faktūrrēķins 3-456-1 dati 25 | C28: 3-456-1 | D28: 25 | E28: 25 | F28: 25.00 EUR | G28: 25.00 EUR | H28: =(Rēķina_informācija[[#This Row],[Daudz.]]*Rēķina_informācija[[#This Row],[Vienības cena]])-Rēķina_informācija[[#This Row],[Atlaide]] -> 600.00 EUR
B29: Faktūrrēķins 3-456-2 dati 1 | C29: 3-456-2 | D29: Z4567 | E29: 39 | F29: 5.00 EUR | H29: =(Rēķina_informācija[[#This Row],[Daudz.]]*Rēķina_informācija[[#This Row],[Vienības cena]])-Rēķina_informācija[[#This Row],[Atlaide]] -> 195.00 EUR
B30: Faktūrrēķins 3-456-2 dati 2 | C30: 3-456-2 | D30: Z4568 | E30: 40 | F30: 4.00 EUR | G30: 5.00 EUR | H30: =(Rēķina_informācija[[#This Row],[Daudz.]]*Rēķina_informācija[[#This Row],[Vienības cena]])-Rēķina_informācija[[#This Row],[Atlaide]] -> 155.00 EUR
B31: Faktūrrēķins 3-456-2 dati 3 | C31: 3-456-2 | D31: Z4569 | E31: 30 | F31: 6.00 EUR | G31: 7.00 EUR | H31: =(Rēķina_informācija[[#This Row],[Daudz.]]*Rēķina_informācija[[#This Row],[Vienības cena]])-Rēķina_informācija[[#This Row],[Atlaide]] -> 173.00 EUR
B32: Faktūrrēķins 3-456-2 dati 4 | C32: 3-456-2 | D32: Z4570 | E32: 40 | F32: 7.00 EUR | H32: =(Rēķina_informācija[[#This Row],[Daudz.]]*Rēķina_informācija[[#This Row],[Vienības cena]])-Rēķina_informācija[[#This Row],[Atlaide]] -> 280.00 EUR
B33: Faktūrrēķins 3-456-2 dati 5 | C33: 3-456-2 | D33: Z4571 | E33: 10 | F33: 4.00 EUR | H33: =(Rēķina_informācija[[#This Row],[Daudz.]]*Rēķina_informācija[[#This Row],[Vienības cena]])-Rēķina_informācija[[#This Row],[Atlaide]] -> 40.00 EUR
B34: Faktūrrēķins 3-456-2 dati 6 | C34: 3-456-2 | D34: Z4572 | E34: 5 | F34: 8.00 EUR | H34: =(Rēķina_informācija[[#This Row],[Daudz.]]*Rēķina_informācija[[#This Row],[Vienības cena]])-Rēķina_informācija[[#This Row],[Atlaide]] -> 40.00 EUR
B35: Faktūrrēķins 3-456-2 dati 7 | C35: 3-456-2 | D35: Z4573 | E35: 70 | F35: 6.00 EUR | H35: =(Rēķina_informācija[[#This Row],[Daudz.]]*Rēķina_informācija[[#This Row],[Vienības cena]])-Rēķina_informācija[[#This Row],[Atlaide]] -> 420.00 EUR
B36: Faktūrrēķins 3-456-2 dati 8 | C36: 3-456-2 | D36: Z4574 | E36: 25 | F36: 4.00 EUR | H36: =(Rēķina_informācija[[#This Row],[Daudz.]]*Rēķina_informācija[[#This Row],[Vienības cena]])-Rēķina_informācija[[#This Row],[Atlaide]] -> 100.00 EUR
B37: Faktūrrēķins 3-456-2 dati 9 | C37: 3-456-2 | D37: Z4575 | E37: 5 | F37: 7.00 EUR | G37: 3.00 EUR | H37: =(Rēķina_informācija[[#This Row],[Daudz.]]*Rēķina_informācija[[#This Row],[Vienības cena]])-Rēķina_informācija[[#This Row],[Atlaide]] -> 32.00 EUR
B38: Faktūrrēķins 3-456-2 dati 10 | C38: 3-456-2 | D38: Z4576 | E38: 80 | F38: 1.00 EUR | H38: =(Rēķina_informācija[[#This Row],[Daudz.]]*Rēķina_informācija[[#This Row],[Vienības cena]])-Rēķina_informācija[[#This Row],[Atlaide]] -> 80.00 EUR
B39: Faktūrrēķins 3-456-2 dati 11 | C39: 3-456-2 | D39: Z4577 | E39: 65 | F39: 7.00 EUR | H39: =(Rēķina_informācija[[#This Row],[Daudz.]]*Rēķina_informācija[[#This Row],[Vienības cena]])-Rēķina_informācija[[#This Row],[Atlaide]] -> 455.00 EUR
B40: Faktūrrēķins 3-456-2 dati 12 | C40: 3-456-2 | D40: Z4578 | E40: 44 | F40: 1.00 EUR | H40: =(Rēķina_informācija[[#This Row],[Daudz.]]*Rēķina_informācija[[#This Row],[Vienības cena]])-Rēķina_informācija[[#This Row],[Atlaide]] -> 44.00 EUR

Sheet Par šo rēķinu izsekotāju
B1: Par šo rēķinu izsekotāju
B4: Rēķinu izsekotājs ir paredzēts, lai uzturētu klientu, rēķinu un rēķinu detalizētas informācijas vēsturi, lai jūs varētu glabāt vairākus rēķinus, neveidojot vairākus failus. Varat arī izmantot rēķinu izsekotāju, lai analizētu iepriekš izrakstītos datus. Piemēram, varat skatīt visus rēķinus klientam, konkrētam projektam vai skatīt visus rēķinus par pēdējo mēnesi, pēdējo gadu un daudz ko citu.
B5: Pirms darba sākšanas aplūkojiet sniegto datu paraugu. Rēķinu lapā atlasiet šūnu pa labi no Rēķins nr. (šūna L8), un tiks parādīts nolaižamais saraksts. Atlasiet nolaižamā saraksta bultiņu un pēc tam atlasiet rēķina paraugu. Ievērojiet, kā visa rēķina informācija tiek automātiski mainīta, lai atspoguļotu atlasīto rēķinu. Tagad aplūkojiet Klienti, Rēķini — galveno un rēķinu detalizētās informācijas lapu. Katra no šīm lapām sniedz informāciju lapai Rēķins, un visas jūsu veiktās izmaiņas tiks automātiski atjauninātas.
B6: Kā sākt darbu?
B7: Modificējiet lapu Rēķins, lai tā atspoguļotu jūsu uzņēmuma informāciju, veicot šādas darbības:
B8: 1. | C8: Pārejiet uz lapu Rēķins un cilnes Pārskatīšana grupā Aizsardzība atlasiet Noņemt lapas aizsardzību.
C9: Piezīme. Rēķina lapa ir aizsargāta, lai izvairītos no netīšām izmaiņām, jo, kā minēts iepriekš, lielākā daļa šajā lapā esošo datu tiek izvilkta no visām pārējām darbgrāmatas lapām.
B10: 2. | C10: Pielāgojiet rēķina galveni, ierakstot uzņēmuma nosaukumu, adresi, pilsētu, pasta indeksu, e-pasta adresi, tīmekļa vietni utt. Rēķina lejasdaļā (rinda 43) modificējiet apmaksas norādījumus.
C11: Svarīgi! Nemodificējiet norēķinu vai rēķina informāciju. Visās šajās šūnās ir formulas, kuras automātiski atjauninās rēķinu, kā tas ir norādīts sadaļā Par rēķinu izsekotāju.
B12: 3. | C12: (Nav obligāti) Modificējiet krāsas visā darbgrāmatā: Cilnes Lappuses izkārtojums grupā Dizaini atlasiet Krāsas un krāsu galerijā atlasiet citu dizaina krāsu kopu.
B13: Padoms: Izveidojiet pielāgotu dizaina krāsu kopu, kas atbilst jūsu uzņēmuma zīmolam. Lai to izdarītu, cilnes Lappuses izkārtojums grupā Dizaini atlasiet Krāsas un pēc tam atlasiet Pielāgot krāsas. Lai iegūtu papildinformāciju par pielāgotas krāsas kopas izveidi, skatiet šo palīdzības tēmu:
C14: Pielāgojiet dokumenta dizainu.
B15: 4. | C15: Kad esat veicis vajadzīgās izmaiņas, atgriezieties lapā Rēķins un cilnes Pārskatīšana grupā Izmaiņas atlasiet Aizsargāt lapu un pēc tam atlasiet Labi. Kad rēķina lapa ir aizsargāta, vienīgā šūna, ko varat atlasīt, ir šūna ar rēķina nr. nolaižamo izvēlni.
B16: Kā izveidot rēķinu?
B17: 1. | C17: Lapā Klienti ievadiet klienta informāciju, piemēram, uzņēmuma nosaukumu un adresi. Ņemiet vērā, ka uzņēmuma nr. ir svarīgs ieraksts, jo tas nodrošina tādu unikālu identifikatoru katram uzņēmumam, kas tiek lietots rēķinu izsekotājā. Ņemiet vērā arī to, ka uzņēmums ir jāpievieno tikai vienu reizi. Turpmākajiem rēķiniem tam pašam uzņēmumam šo darbību var izlaist.
C18: Piezīme. Ja piešķirat vienu un to pašu numuru vairākiem uzņēmumiem vai ja ievadāt vienu un uzņēmuma nosaukumu vairākas reizes, ieraksti tiek atzīmēti sarkanā krāsā, lai jūs brīdinātu par dublēšanos.
B19: 2. | C19: Rēķinu galvenajā lapā ievadiet rēķina primāro informāciju, piemēram, rēķina nr., rēķina datumu un projekta aprakstu. Līdzīgi kā uzņēmuma nr. arī rēķina nr. ir svarīgs ieraksts, jo tas nodrošina unikālu identifikatoru katram rēķinam un tiek lietots rēķinu izsekotājā. Vēl viens svarīgs ieraksts ir Uzņēmums. Kad nolaižamajā sarakstā atlasāt uzņēmumu, tas saista jūsu rēķinu ar šo uzņēmumu. Pēc tam rēķina lapā atlasot rēķina nr., šī uzņēmuma informācija, piemēram, uzņēmuma nosaukums un adrese, tiek automātiski aizpildīta rēķinā.
C20: Piezīme. Ja piešķirat vienu un to pašu numuru vairākiem rēķiniem, ieraksti tiek atzīmēti sarkanā krāsā, lai jūs brīdinātu par dublēšanos.
B21: 3. | C21: Lapā Rēķina detalizētā informācija ievadiet rēķina detalizēto informāciju, piemēram, preces aprakstu, preces nr., daudzumu un vienības cenu. Lai atvieglotu datu ievadi, rēķina nr. nolaižamajā sarakstā ir jūsu ievadīto rēķinu saraksts (Rēķini — galvenā lapa). Līdzīgi kā ar uzņēmuma nr. iepriekšējā darbībā rēķina nr. saista šo detalizēto vienumu ar konkrētu rēķinu. Ja rēķina lapas rēķina nr. nolaižamajā sarakstā atlasāt rēķina nr., tiek parādīti atbilstošā rēķina detalizētās informācijas vienumi.
C22: Piezīme. Katram rēķinam varat norādīt tikai 25 detalizētus vienumus. Ja ir pievienoti vairāk nekā 25 vienumi, visi atbilstošie ieraksti tiek atzīmēti sarkanā krāsā, lai jūs brīdinātu par šo ierobežojumu. Ja jums ir vairāk nekā 25 rēķinā iekļauti vienumi, ir jāizveido otrs rēķins.
B23: Kā pievienot papildu klientus, rēķinus un detalizētu informāciju par rēķiniem?
B24: Dati par klientiem, rēķiniem un rēķinu detalizēto informāciju tiek glabāti Excel tabulās. Pievienojot tabulai jaunu rindu, šī jaunizveidotā rinda automātiski tiek formatēta un visi aprēķini tiek kopēti. Lai pievienotu jaunas tabulas rindas, veiciet kādu no šīm darbībām:
B25: ● | C25: Ja tabulā nav kopsummas rindas, sāciet rakstīt zem tabulas, un tā tiks automātiski izvērsta, kad nospiedīsit taustiņu Enter vai tabulēšanas taustiņu.
B26: ● | C26: Novietojiet šūnas rādītāju pēdējā šūnā virs kopsummas rindas, piemēram, tabulas Rēķini pēdējā rēķina šūnā Piezīmes, un pēc tam nospiediet tabulēšanas taustiņu.
B27: ● | C27: Cilnes Sākums grupā Šūnas atlasiet Ievietot un pēc tam atlasiet Tabulas rindu virs vai Tabulas rindu zem.
B28: ● | C28: Tabulas apakšējā labajā stūrī novietojiet peli uz tabulas lielummaiņas tura un velciet uz leju, lai palielinātu pieejamo tabulas rindu skaitu.
B29: Kā analizēt savu detalizēto informāciju par rēķinu?
B30: Kā atzīmēts sadaļā Par rēķinu izsekotāju, kad esat ievadījis vairākus rēķinus, varat skatīt visu rēķinu sarakstu konkrētam klientam, projektam, konkrētam datumu intervālam un daudz kam citam. Šis analīzes veids tiek panākts, izmantojot filtru, kas sniedz iespēju ātri sašaurināt datu sarakstu. Lai tabulās Klienti, Rēķini vai Rēķinu detalizētā informācija piekļūtu filtram, atlasiet nolaižamā saraksta bultiņu blakus jebkuram tabulas lauka nosaukumam. Tiek parādīta filtra rūts, kurā ir pieejamas dažādas filtrēšanas opcijas. Lūk, daži filtrēšanas piemēri, kas palīdzēs sākt darbu:
B31: ● | C31: Lai skatītu konkrētam klientam rēķinos iekļauto kopsummu: Rēķinu galvenajā lapā pa labi no lauka Uzņēmuma nr. atlasiet nolaižamā saraksta bultiņu. Filtra rūtī noklikšķiniet uz Atlasīt visu, lai noņemtu atlasi visiem uzņēmumiem, atlasiet nepieciešamo uzņēmumu un pēc tam atlasiet Labi.
C32: Padoms: Rūtī Filtrs varat arī ierakstīt klienta nosaukumu tekstlodziņā Meklēt, lai ātri meklētu pieejamajā sarakstā.
B33: ● | C33: Lai skatītu visus rēķinus konkrētam klientam un konkrētam(iem) projektam(iem): Vispirms filtrējiet, lai atrastu nepieciešamo klientu, izmantojot iepriekšējā piemērā norādītās darbības. Pēc tam pa labi no Projekta nr. atlasiet nolaižamā saraksta bultiņu. Filtra rūtī atlasiet nepieciešamos projektus un pēc tam atlasiet Labi.
B34: ● | C34: Lai skatītu visus iepriekšējā mēneša rēķinus: Rēķinu galvenajā lapā pa labi no lauka Rēķina datums atlasiet nolaižamā saraksta bultiņu, norādiet uz Datuma filtri un pēc tam atlasiet Pēdējais mēnesis.
B35: ● | C35: Lai skatītu visus klientus ar vienu un to pašu apgabala kodu: Lapā Klienti pa labi no lauka Tālrunis atlasiet nolaižamā saraksta bultiņu. Filtra rūtī noklikšķiniet tekstlodziņā Meklēt, ierakstiet apgabala kodu un pēc tam atlasiet Labi.
B36: Filtra padomi
B37: ● | C37: Ja tabulai, piemēram, Klienti un Rēķini, ir kopsummas rinda, tad aprēķinātās kopsummas atbildīs tikai filtrētajam sarakstam.
B38: ● | C38: Izmantojiet vairākus filtrus vienam vai vairākiem laukiem, lai precizētu rezultātus.
B39: ● | C39: Lai notīrītu vienu filtru, atlasiet nolaižamā saraksta bultiņu iepriekš filtrētai kolonnai un pēc tam atlasiet Notīrīt filtru laukam <lauka nosaukums>.
B40: ● | C40: Lai vienlaikus notīrītu vairākus filtrus, novietojiet šūnas rādītāju tabulā, cilnes Sākums grupā Rediģēšana atlasiet Kārtot un filtrēt un pēc tam atlasiet Notīrīt.
